bitfinex/quotes_SOLUSD_20241010
["timestamp","ask_amount","ask_price","bid_price","bid_amount"]
[1728563861779,15.1123,139.24,139.17,17.9625]
[1728563862294,7.1824,139.23,139.18,7.1848]
[1728563862573,15.1123,139.24,139.13,17.968]
[1728563862775,15.1123,139.24,139.16,7.1858]
[1728563862776,7.1834,139.21,139.16,7.1858]
[1728563863079,7.1834,139.21,139.15,7.1864]
[1728563863672,15.1123,139.24,139.13,17.968]
[1728563864079,7.1849,139.18,139.13,25.1554]
[1728563864257,7.1861,139.16,139.11,7.1885]
[1728563864890,59.68359,139.22,139.09,17.9731]
[1728563865176,7.1875,139.13,139.09,17.9731]
[1728563865479,13.7237,139.13,139.09,17.9731]
[1728563865780,6.5362,139.13,139.09,17.9731]
[1728563865962,6.5362,139.13,139.09,25.1625]
[1728563867879,15.7961,139.15,139.09,17.9731]
[1728563868385,7.1874,139.14,139.09,25.1626]
[1728563868594,15.7961,139.15,139.04,7.4413347]
[1728563868595,15.7961,139.15,139.06,0.12549]
[1728563868887,15.7961,139.15,139.05,17.9778]
[1728563869180,7.1876,139.13,139.08,7.19]
[1728563870586,15.7961,139.15,139.05,17.9778]
[1728563870774,7.1882,139.12,139.07,7.1906]
[1728563871478,7.1885,139.11,139.05,25.1689]
[1728563871681,7.1885,139.11,139.07,7.1905]
[1728563871885,7.1892,139.1,139.05,25.1689]
[1728563872677,7.1885,139.11,139.06,7.1911]
[1728563872874,33.7632,139.15,139.05,17.9778]
[1728563873083,7.1879,139.13,139.08,7.1899]
[1728563873272,20.0,139.14,139.05,17.9778]
[1728563873460,7.1886,139.11,139.06,7.191]
[1728563873660,7.189,139.1,139.06,7.191]
[1728563873964,20.0,139.14,139.05,19.41588684]
[1728563874168,7.1886,139.11,139.06,7.191]
[1728563874370,15.7961,139.15,139.07,19.41364184]
[1728563874554,15.7961,139.15,139.02,35.9653]
[1728563874555,15.7961,139.15,139.08,1.437714]
[1728563874765,15.7961,139.15,139.09,17.973]
[1728563874956,7.187,139.14,139.09,17.973]
[1728563875181,15.7961,139.15,139.09,17.973]
[1728563875378,7.1875,139.13,139.09,17.973]
[1728563875571,15.7961,139.15,139.11,7.1884]
[1728563875777,22.9826,139.15,139.11,7.1884]
[1728563875983,15.7961,139.15,139.13,7.1874]
[1728563876178,6.5309,139.17,139.13,7.1874]
[1728563876612,6.5309,139.17,139.14,7.1865]
[1728563876890,6.5309,139.17,139.13,17.9678]
[1728563876891,13.7164,139.17,139.13,17.9678]
[1728563877271,6.5309,139.17,139.12,7.1879]
[1728563877470,7.186,139.16,139.11,7.1884]
[1728563878274,13.7164,139.17,139.12,8.62521665]
[1728563878580,6.5309,139.17,139.13,7.1874]
[1728563878773,6.5309,139.17,139.12,17.9693]
[1728563878973,13.7167,139.17,139.12,25.1572]
[1728563879663,6.5309,139.17,139.13,8.62465045]
[1728563879866,6.5309,139.17,139.16,7.1859]
[1728563880087,15.0146,139.19,139.15,7.1863]
[1728563880674,15.0146,139.19,139.14,17.9666]
[1728563880892,15.0146,139.19,139.16,7.1859]
[1728563881091,13.3456,139.21,139.17,8.6222401]
[1728563881092,6.1622,139.21,139.17,8.6222401]
[1728563881280,16.3927,139.23,139.19,7.1842]
[1728563881470,16.3927,139.23,139.18,17.9611]
[1728563881793,7.1828,139.22,139.18,17.9611]
[1728563881984,16.3927,139.23,139.1,35.9438]
[1728563881985,16.3927,139.23,139.15,17.9657]
[1728563882293,16.3927,139.23,139.12,17.9696]
[1728563882596,7.1849,139.18,139.13,7.1874]
[1728563883004,43.776884,139.22,139.12,17.9696]
[1728563883168,17.9595,139.21,139.09,17.9735]
[1728563883502,7.1865,139.15,139.1,7.1889]
[1728563883694,7.1874,139.14,139.09,17.9735]
[1728563884012,7.188,139.13,139.07,7.1905]
[1728563884177,7.187,139.14,139.09,7.1894]
[1728563884374,16.4379,139.15,139.11,7.1883]
[1728563884571,16.4379,139.15,139.12,8.62537104]
[1728563884771,16.4379,139.15,139.09,17.9735]
[1728563884991,15.1944,139.19,139.15,7.1864]
[1728563885473,15.1944,139.19,139.11,17.9713]
[1728563885682,7.1864,139.16,139.11,25.1598]
[1728563886290,15.1944,139.19,139.11,17.9713]
[1728563886472,7.1872,139.14,139.09,7.1895]
[1728563886672,6.6152,139.16,139.02,7.44054388]
[1728563886876,7.1896,139.09,139.04,17.9798]
[1728563887798,7.192,139.05,139.01,0.8245438]
[1728563888482,7.1911,139.06,139.01,0.8245438]
[1728563889141,7.1911,139.06,139.01,8.0181438]
[1728563889292,6.1925,139.08,139.01,8.0181438]
[1728563889494,7.1911,139.06,139.01,8.0181438]
[1728563889699,7.1922,139.04,139.01,0.8245438]
[1728563891900,6.1925,139.08,139.01,0.8245438]
[1728563892071,7.1922,139.04,139.01,0.8245438]
[1728563892396,7.1927,139.03,139.01,0.8245438]
[1728563892897,7.1911,139.06,139.01,8.0181438]
[1728563893099,13.383,139.08,139.02,1.4385523]
[1728563893483,7.1918,139.05,139.01,0.8245438]
[1728563893788,7.1917,139.05,139.01,0.8245438]
[1728563894002,7.1924,139.04,139.01,0.8245438]
[1728563894497,7.192,139.05,139.01,0.8245438]
[1728563894800,7.1922,139.04,139.01,0.8245438]
[1728563895113,7.1916,139.06,139.01,0.8245438]
[1728563895480,7.1916,139.05,139.01,0.8245438]
[1728563895999,6.1925,139.08,139.01,0.8245438]
[1728563896000,7.1922,139.04,139.01,0.8245438]
[1728563896512,7.1932,139.02,139.01,0.8245438]
[1728563898104,7.1927,139.03,139.01,0.8245438]
[1728563898288,7.1921,139.05,139.01,0.8245438]
[1728563898625,6.1925,139.08,139.01,0.8245438]
[1728563898907,7.1916,139.05,139.01,0.8245438]
[1728563899676,6.1925,139.08,139.01,0.8245438]
[1728563899677,20.0,139.07,139.01,0.8245438]
[1728563899880,7.1919,139.05,139.01,0.8245438]
[1728563900101,6.1925,139.08,139.01,0.8245438]
[1728563900307,7.1921,139.05,139.01,0.8245438]
[1728563900604,6.1925,139.08,139.01,0.8245438]
[1728563900605,7.1922,139.04,139.01,0.8245438]
[1728563900980,6.1925,139.08,139.01,0.8245438]
[1728563901181,7.1932,139.02,139.01,0.8245438]
[1728563901803,17.9782,139.06,139.01,0.8245438]
[1728563901995,7.1932,139.02,139.01,0.8245438]
[1728563902693,17.9782,139.06,139.01,0.8245438]
[1728563902694,7.1927,139.03,139.01,0.8245438]
[1728563902898,7.1921,139.04,139.01,0.8245438]
[1728563907404,6.3749,139.12,139.09,7.1895]
[1728563907793,6.3749,139.12,139.09,17.973]
[1728563908309,7.1886,139.11,139.06,7.1906]
[1728563908491,6.3749,139.12,139.05,17.9782]
[1728563908891,13.5631,139.12,139.06,7.1906]
[1728563909199,13.5631,139.12,139.06,7.191]
[1728563909200,7.1885,139.11,139.06,7.191]
[1728563909604,6.3749,139.12,139.08,7.19]
[1728563909781,7.1886,139.11,139.06,7.1909]
[1728563909987,6.3749,139.12,139.01,38.9336338]
[1728563910191,6.3749,139.12,139.01,20.8245438]
[1728563910405,7.1891,139.1,139.05,7.1915]
[1728563910604,7.1885,139.11,139.06,7.191]
[1728563910806,6.3749,139.12,139.03,17.9806]
[1728563911120,7.189,139.11,139.05,7.1915]
[1728563911401,6.3749,139.12,139.05,7.1915]
[1728563911402,7.1891,139.1,139.05,7.1915]
[1728563912691,6.3749,139.12,139.03,17.9806]
[1728563913017,6.3749,139.12,139.05,17.9783]
[1728563913187,6.3749,139.12,139.09,7.1895]
[1728563913523,6.3749,139.12,139.08,7.1899]
[1728563914311,13.5631,139.12,139.07,25.1663]
[1728563914885,6.3749,139.12,139.04,17.9799]
[1728563915108,6.3749,139.12,139.07,7.1905]
[1728563915309,7.189,139.11,139.05,7.1912]
[1728563915484,7.1891,139.1,139.05,7.1912]
[1728563915683,7.1886,139.11,139.06,7.1911]
[1728563915907,13.5629,139.12,139.08,7.19]
[1728563916101,6.3749,139.12,139.09,7.1893]
[1728563916410,6.3749,139.12,139.1,7.189]
[1728563916643,15.0836,139.15,139.04,1.4377829]
[1728563916644,15.0836,139.15,139.12,7.1879]
[1728563917132,15.0836,139.15,139.11,7.1885]
[1728563918228,15.0836,139.15,139.1,17.9719]
[1728563918536,15.0836,139.15,139.12,7.1878]
[1728563918745,15.0836,139.15,139.11,7.1884]
[1728563919036,15.0836,139.15,139.12,7.1879]
[1728563920033,6.5984,139.16,139.12,7.1879]
[1728563920437,13.7844,139.16,139.12,7.1879]
[1728563921241,13.7844,139.16,139.1,17.9719]
[1728563921544,13.7844,139.16,139.11,7.1884]
[1728563921944,7.1872,139.14,139.1,17.9719]
[1728563922154,6.5984,139.16,139.07,17.9761]
[1728563922655,7.1876,139.13,139.08,7.19]
[1728563923148,7.1875,139.13,139.09,7.1894]
[1728563923447,7.1882,139.12,139.07,17.9761]
[1728563923616,7.1886,139.11,139.03,57.7176195]
[1728563923942,24.5644,139.16,139.06,7.1906]
[1728563923943,7.1883,139.12,139.06,7.1906]
[1728563924245,7.19,139.09,139.04,25.1718]
[1728563924418,33.9654,139.14,139.04,25.1718]
[1728563924419,7.1901,139.08,139.04,25.1718]
[1728563925030,7.1901,139.08,139.04,17.9798]
[1728563925225,7.1906,139.07,139.02,7.1931]
[1728563925424,6.3246,139.08,139.03,7.1926]
[1728563925642,13.5147,139.08,139.03,7.1926]
[1728563925850,7.191,139.07,139.02,7.1931]
[1728563926342,7.1912,139.06,139.01,26.0017438]
[1728563926739,7.1907,139.07,139.02,7.1931]
[1728563927044,6.3246,139.08,139.03,7.1926]
[1728563927226,6.3246,139.08,139.04,7.1917]
[1728563927428,6.3246,139.08,139.05,7.1915]
[1728563927636,6.3246,139.08,139.03,17.9807]
[1728563927845,6.3246,139.08,139.04,7.192]
[1728563928344,6.3246,139.08,139.03,17.9807]
[1728563928345,6.3246,139.08,139.05,7.1916]
[1728563929151,6.3246,139.08,139.03,17.9807]
[1728563929450,6.3246,139.08,139.05,7.1916]
[1728563929621,6.3246,139.08,139.03,17.9807]
[1728563929822,6.3246,139.08,139.04,7.1919]
[1728563930423,7.1896,139.09,139.04,7.1919]
[1728563930643,7.1896,139.09,139.04,8.63003345]
[1728563930840,7.1896,139.09,139.05,7.1915]
[1728563931040,7.1896,139.09,139.04,7.1921]
[1728563931247,7.1896,139.09,139.04,8.63029133]
[1728563931552,7.1896,139.09,139.04,7.1921]
[1728563932156,6.179,139.12,139.03,17.9807]
[1728563932345,6.179,139.12,139.01,0.8245438]
[1728563932346,37.9722,139.11,139.01,0.8245438]
[1728563932552,7.191,139.07,139.01,8.0178438]
[1728563933051,7.1912,139.06,139.01,8.0178438]
[1728563933427,7.1917,139.05,139.01,0.8245438]
[1728563935955,7.1917,139.05,139.01,8.0180438]
[1728563938735,16.4367,139.06,139.01,0.8245438]
[1728563939556,7.1922,139.04,139.01,0.8245438]
[1728563940057,7.1917,139.05,139.01,8.0181438]
[1728563940261,16.4367,139.06,139.01,0.8245438]
[1728563940645,7.1917,139.05,139.01,8.0181438]
[1728563941159,16.4367,139.06,139.03,7.1926]
[1728563941360,16.4367,139.06,139.03,8.63096564]
[1728563941557,37.9719,139.11,139.03,7.1926]
[1728563941558,15.6682,139.1,139.03,7.1926]
[1728563941757,22.8573,139.1,139.01,0.8245438]
[1728563942072,6.179,139.12,139.01,0.8245438]
[1728563942073,6.179,139.12,139.09,7.1891]
[1728563942361,6.179,139.12,139.08,17.9743]
[1728563942661,15.6175,139.15,139.12,17.9692]
[1728563943081,22.8039,139.15,139.1,7.1886]
[1728563943254,15.6175,139.15,139.03,20.0]
[1728563943454,15.6175,139.15,139.07,7.1905]
[1728563943778,10.05719329,139.14,139.06,7.1911]
[1728563943955,7.1901,139.08,139.03,7.1922]
[1728563944160,20.0,139.13,139.01,18.8076438]
[1728563944365,20.0,139.13,139.03,17.9806]
[1728563944366,7.1891,139.1,139.03,17.9806]
[1728563944572,30.05719329,139.13,139.03,17.9806]
[1728563944768,7.1901,139.08,139.03,25.1731]
[1728563945153,6.06,139.12,139.01,0.8245438]
[1728563945360,6.06,139.12,139.02,7.193]
[1728563945361,7.1908,139.07,139.02,7.193]
[1728563945958,7.1908,139.07,139.02,8.63132665]
[1728563946156,7.1908,139.07,139.02,7.193]
[1728563946490,7.1912,139.06,139.01,8.0182438]
[1728563946767,7.1906,139.07,139.02,7.1927]
[1728563946970,7.1911,139.06,139.01,8.0181438]
[1728563947168,7.1921,139.05,139.01,0.8245438]
[1728563947357,20.0,139.08,139.01,0.8245438]
[1728563947560,7.1931,139.03,139.01,0.8245438]
[1728563947781,7.1921,139.05,139.01,0.8245438]
[1728563948082,6.6642,139.07,139.01,0.8245438]
[1728563948379,7.1932,139.02,139.01,0.8245438]
[1728563949257,22.5431,139.02,139.01,0.8245438]
[1728563950056,22.5431,139.02,138.89,25.93851279]
[1728563950057,6.313,139.01,138.91,17.9968]
[1728563950266,6.313,139.01,138.93,7.1978]
[1728563950267,7.1953,138.98,138.93,7.1978]
[1728563950586,7.1953,138.98,138.94,1.43927115]
[1728563950787,7.1953,138.98,138.93,7.1978]
[1728563950969,7.1947,138.99,138.94,8.63657077]
[1728563951160,6.313,139.01,138.91,17.9968]
[1728563951361,7.1953,138.98,138.93,7.1977]
[1728563951666,7.1948,138.99,138.94,1.43933301]
[1728563951858,6.313,139.01,138.94,8.63655793]
[1728563952093,7.1943,139.0,138.94,8.63605793]
[1728563952269,7.1943,139.0,138.95,7.1965]
[1728563952667,13.5068,139.01,138.96,8.63488395]
[1728563952967,6.313,139.01,138.97,7.1957]
[1728563953867,6.313,139.01,138.95,17.9911]
[1728563954065,7.1947,138.99,138.95,17.9911]
[1728563954486,7.1953,138.98,138.93,7.1978]
[1728563955566,6.313,139.01,138.92,17.9959]
[1728563955768,7.1958,138.97,138.92,25.1942]
[1728563956591,7.1952,138.99,138.93,8.63711715]
[1728563956973,7.1953,138.98,138.93,8.63711715]
[1728563957165,7.1953,138.98,138.93,7.1977]
[1728563957763,7.1951,138.99,138.94,7.1971]
[1728563958167,7.1943,139.0,138.95,7.1967]
[1728563958387,7.1947,138.99,138.94,7.1973]
[1728563959097,13.5067,139.01,138.96,7.1961]
[1728563959885,6.313,139.01,138.95,17.9916]
[1728563960267,7.1948,138.99,138.95,17.9916]
[1728563960469,7.1958,138.97,138.92,25.1935]
[1728563960689,6.313,139.01,138.92,17.9956]
[1728563960871,7.1948,138.99,138.94,7.1973]
[1728563961074,7.1948,138.99,138.92,17.9956]
[1728563961294,7.1948,138.99,138.95,7.1967]
[1728563961503,7.1948,138.99,138.94,7.1973]
[1728563962600,6.313,139.01,138.93,7.1974]
[1728563962802,7.1958,138.97,138.92,17.9956]
[1728563963588,6.313,139.01,138.92,17.9956]
[1728563963875,6.6189,139.09,139.04,17.9803]
[1728563964078,13.8086,139.09,139.03,7.1922]
[1728563964573,7.1906,139.07,139.01,17.9842]
[1728563964787,6.6189,139.09,139.01,25.1778]
[1728563964788,7.1912,139.06,139.01,25.1778]
[1728563964973,7.1912,139.06,139.01,17.9842]
[1728563965374,7.1925,139.04,138.99,7.1947]
[1728563965580,7.1932,139.02,138.97,25.1835]
[1728563965776,16.479,139.04,138.97,17.9882]
[1728563965976,23.6716,139.04,138.98,7.1952]
[1728563966199,7.1932,139.02,138.97,17.9882]
[1728563966516,7.1932,139.02,138.94,25.1899]
[1728563966517,6.3103,139.02,138.94,25.1899]
[1728563966701,7.195,138.99,138.94,17.9931]
[1728563967001,7.1947,138.99,138.94,17.9931]
[1728563967190,7.1942,139.0,138.95,7.1966]
[1728563967387,20.0,139.01,138.94,25.19]
[1728563967584,7.195,138.99,138.94,25.19]
[1728563967797,7.1942,139.0,138.95,7.1967]
[1728563967997,20.0,139.01,138.95,7.1967]
[1728563968298,6.3103,139.02,138.96,17.9896]
[1728563968604,6.3103,139.02,139.0,7.1941]
[1728563968981,16.479,139.04,139.02,7.1931]
[1728563969204,16.479,139.04,138.99,17.9868]
[1728563969411,16.479,139.04,138.97,7.1957]
[1728563969412,7.1932,139.02,138.97,7.1957]
[1728563969581,7.1948,138.99,138.94,7.1968]
[1728563970511,16.479,139.04,138.93,25.1922]
[1728563970710,7.1948,138.99,138.93,25.1922]
[1728563971006,7.1952,138.98,138.93,25.1922]
[1728563971189,7.1952,138.98,138.93,17.9945]
[1728563971806,7.1962,138.97,138.92,7.1983]
[1728563972184,15.1861,138.97,138.9,25.1974]
[1728563972506,15.1861,138.97,138.87,0.8245438]
[1728563972507,7.1973,138.94,138.88,7.2004]
[1728563972688,7.1969,138.95,138.9,7.1992]
[1728563972884,7.1969,138.95,138.87,18.8267438]
[1728563973085,7.1969,138.95,138.9,7.1991]
[1728563973280,7.1974,138.94,138.87,18.8267438]
[1728563974000,7.1974,138.94,138.89,7.1998]
[1728563975479,7.1968,138.95,138.9,7.1992]
[1728563975679,7.1963,138.96,138.91,8.63842009]
[1728563976204,22.3819,138.97,138.92,8.6378813]
[1728563976712,15.1861,138.97,138.9,17.9985]
[1728563976904,7.1963,138.96,138.91,8.63828747]
[1728563977089,7.1963,138.96,138.91,7.1988]
[1728563977820,15.1861,138.97,138.92,7.1979]
[1728563978105,7.1963,138.96,138.91,7.1983]
[1728563980196,7.1969,138.95,138.9,25.1977]
[1728563981093,15.1861,138.97,138.91,1.43962229]
[1728563981299,23.014,139.01,138.96,7.1958]
[1728563981603,23.014,139.01,138.95,17.9914]
[1728563981604,15.8203,139.01,138.95,17.9914]
[1728563981813,15.8203,139.01,138.98,7.1952]
[1728563982014,6.365,139.02,138.98,7.1952]
[1728563982184,7.1927,139.03,138.98,7.1952]
[1728563982597,7.1927,139.03,138.99,7.1947]
[1728563982789,21.6276,139.05,138.99,7.1947]
[1728563982790,7.1921,139.04,138.99,7.1947]
[1728563982990,7.1921,139.04,139.0,7.1942]
[1728563983205,7.1921,139.04,138.98,1.43871231]
[1728563983397,7.1921,139.04,138.99,7.1946]
[1728563983908,21.6276,139.05,138.97,25.1842]
[1728563984219,7.1943,139.0,138.95,7.1967]
[1728563984726,7.1943,139.0,138.92,0.12549]
[1728563984727,7.1933,139.02,138.97,7.1957]
[1728563985004,20.0,139.04,138.93,17.9945]
[1728563985209,7.1952,138.99,138.94,7.1972]
[1728563985590,7.1947,139.0,138.95,7.1967]
[1728563986393,20.0,139.04,138.93,17.9945]
[1728563986394,7.1922,139.04,138.99,7.1946]
[1728563986601,21.6276,139.05,138.98,17.9879]
[1728563986799,7.1927,139.03,138.98,25.183]
[1728563987716,21.6276,139.05,138.98,17.9879]
[1728563987921,7.1921,139.04,138.99,8.63326149]
[1728563988215,21.6276,139.05,138.99,1.43876149]
[1728563988404,21.6276,139.05,139.01,7.1935]
[1728563988586,21.6276,139.05,139.01,8.63201669]
[1728563988785,28.8194,139.05,139.0,25.1789]
[1728563989196,28.8194,139.05,139.01,7.1937]
[1728563989401,21.1669,139.09,138.97,34.8619708]
[1728563989595,7.1891,139.1,139.05,7.1911]
[1728563989893,21.1669,139.13,139.07,7.1903]
[1728563989894,7.1882,139.12,139.07,7.1903]
[1728563990089,21.1669,139.13,139.02,34.8619708]
[1728563990303,7.1895,139.1,139.05,7.1915]
[1728563990723,21.1669,139.13,139.06,7.191]
[1728563991011,7.1892,139.1,139.03,47.9814]
[1728563992094,21.1669,139.13,139.03,47.9814]
[1728563992293,7.1906,139.07,139.03,47.9814]
[1728563992615,7.1895,139.1,139.04,7.192]
[1728563992998,7.1898,139.09,139.04,7.192]
[1728563993913,7.1901,139.08,139.03,55.1739]
[1728563994214,23.902374,139.11,139.0,17.9855]
[1728563994417,37.9737,139.1,139.01,37.1935]
[1728563994626,7.1913,139.06,139.01,7.1935]
[1728563994921,37.9737,139.1,139.02,7.1931]
[1728563995111,7.191,139.07,139.02,7.1931]
[1728563995907,37.9737,139.1,139.0,17.9855]
[1728563996214,23.776884,139.09,139.0,17.9855]
[1728563996605,7.1922,139.04,139.0,17.9855]
[1728563997119,13.4742,139.05,139.0,25.1796]
[1728563997990,6.2825,139.05,139.0,17.9855]
[1728563998192,7.1937,139.01,138.97,17.9891]
[1728563998413,7.1942,139.0,138.95,7.1968]
[1728563998625,7.1948,138.99,138.94,17.993]
[1728563999102,7.1952,138.98,138.94,17.993]
[1728563999309,20.0,139.03,138.94,17.993]
[1728563999922,7.1948,138.99,138.94,25.1899]
[1728564000220,7.1948,138.99,138.95,7.1967]
[1728564000424,7.1948,138.99,138.94,25.1903]
[1728564000609,20.0,139.03,138.9,2.6746]
[1728564000796,7.1947,138.99,138.94,7.1969]
[1728564001001,7.1943,139.0,138.95,7.1967]
[1728564001195,7.1949,138.99,138.94,8.63649755]
[1728564001395,7.1949,138.99,138.94,7.1973]
[1728564002002,7.1953,138.98,138.94,1.43921276]
[1728564002227,20.0,139.03,138.93,17.9936]
[1728564002526,21.8842,139.05,138.94,1.5645723]
[1728564002699,7.1926,139.04,138.99,7.1945]
[1728564003135,29.0759,139.05,139.0,7.194]
[1728564003624,21.8842,139.05,138.99,17.9858]
[1728564003829,7.1933,139.02,138.97,7.1957]
[1728564004122,21.8842,139.05,138.96,17.9906]
[1728564004123,7.1927,139.03,138.99,7.1947]
[1728564004627,7.1927,139.03,138.98,7.1952]
[1728564005922,7.1942,139.0,138.96,17.9906]
[1728564006104,21.8842,139.05,138.96,17.9906]
[1728564006105,20.0,139.04,138.96,17.9906]
[1728564006299,7.1928,139.03,138.98,7.195]
[1728564007139,21.8842,139.05,138.89,140.8606708]
[1728564007140,21.8842,139.05,138.89,35.9987]
[1728564007302,7.1963,138.96,138.91,7.1988]
[1728564007812,7.1963,138.96,138.9,25.1973]
[1728564007997,7.197,138.95,138.9,25.1973]
[1728564008316,7.1984,138.92,138.87,26.0269438]
[1728564008508,7.1984,138.92,138.87,18.8265438]
[1728564008709,7.199,138.91,138.87,0.8245438]
[1728564008918,7.1984,138.92,138.87,0.8245438]
[1728564009106,7.1984,138.92,138.88,1.43986139]
[1728564009307,7.1984,138.92,138.87,8.0253438]
[1728564009515,7.1978,138.94,138.88,7.2003]
[1728564009715,7.1978,138.94,138.87,2.26440804]
[1728564009716,7.1979,138.93,138.87,0.8245438]
[1728564009923,7.1984,138.92,138.87,8.0254438]
[1728564010100,7.1979,138.93,138.87,8.0253438]
[1728564010303,20.0,138.97,138.87,0.8245438]
[1728564010616,7.1986,138.92,138.87,0.8245438]
[1728564010929,20.0,138.97,138.88,7.2001]
[1728564010930,7.1978,138.94,138.88,7.2001]
[1728564011234,22.5152,138.98,138.87,36.8281438]
[1728564011407,7.1967,138.96,138.9,25.1965]
[1728564011929,7.197,138.95,138.9,25.1965]
[1728564012315,7.197,138.95,138.91,1.43954244]
[1728564012518,22.5152,138.98,138.87,0.8245438]
[1728564012519,20.0,138.97,138.87,0.8245438]
[1728564012710,7.1989,138.91,138.87,0.8245438]
[1728564013229,23.776884,138.96,138.87,0.8245438]
[1728564013230,20.0,138.95,138.87,0.8245438]
[1728564013402,7.1999,138.89,138.87,0.8245438]
[1728564013812,29.691,138.9,138.87,0.8245438]
[1728564014832,7.2004,138.88,138.87,0.8245438]
[1728564015237,22.4915,138.9,138.8,18.0111]
[1728564015238,7.2025,138.84,138.8,18.0111]
[1728564015407,22.4915,138.9,138.76,18.0154]
[1728564015603,7.2026,138.84,138.78,7.2055]
[1728564016218,18.0022,138.88,138.76,18.0154]
[1728564016546,7.2031,138.83,138.78,7.2055]
[1728564016906,20.0,138.87,138.79,18.0128]
[1728564017108,7.2024,138.85,138.79,25.2175]
[1728564017328,7.2024,138.85,138.8,7.2046]
[1728564017629,7.2015,138.86,138.81,7.2039]
[1728564017831,7.2015,138.86,138.8,7.2045]
[1728564018521,7.2033,138.83,138.79,18.0128]
[1728564018736,7.2026,138.84,138.79,25.2177]
[1728564018933,20.0,138.89,138.8,7.2044]
[1728564019233,7.2025,138.84,138.79,18.0128]
[1728564019536,7.2021,138.85,138.79,25.2174]
[1728564019742,7.2027,138.84,138.79,25.2174]
[1728564020232,7.2037,138.82,138.77,7.2056]
[1728564020617,43.776884,138.87,138.77,7.2056]
[1728564020821,7.2031,138.83,138.78,7.2056]
[1728564021028,7.2031,138.83,138.79,1.44082121]
[1728564021346,23.776884,138.87,138.73,0.8245438]
[1728564021347,7.2066,138.77,138.73,0.8245438]
[1728564021844,7.2045,138.81,138.76,7.2066]
[1728564022013,21.861,138.85,138.77,1.44097893]
[1728564022348,27.2026,138.84,138.79,7.205]
[1728564022515,27.2025,138.84,138.8,1.44081195]
[1728564022714,20.0,138.84,138.79,7.2047]
[1728564023236,21.861,138.85,138.8,7.2041]
[1728564023414,29.0631,138.85,138.8,7.2041]
[1728564023617,21.861,138.85,138.79,1.44059342]
[1728564023818,29.063,138.85,138.79,8.64519342]
[1728564024036,29.063,138.85,138.78,18.0131]
[1728564024251,21.861,138.85,138.78,18.0131]
[1728564024543,21.861,138.85,138.79,1.44068122]
[1728564024836,21.861,138.85,138.78,25.2183]
[1728564025046,21.861,138.85,138.74,18.0183]
[1728564025047,20.0,138.84,138.74,18.0183]
[1728564025225,7.2041,138.81,138.75,7.2067]
[1728564025940,7.2047,138.8,138.75,7.2067]
[1728564026317,7.2058,138.78,138.74,18.0183]
[1728564026528,7.2058,138.78,138.73,0.8245438]
[1728564026529,13.6077,138.77,138.73,0.8245438]
[1728564026742,6.4015,138.77,138.73,8.0327438]
[1728564026943,6.4015,138.77,138.73,0.8245438]
[1728564026944,13.6077,138.77,138.73,0.8245438]
[1728564027241,6.4015,138.77,138.73,0.8245438]
[1728564027541,7.2067,138.76,138.73,0.8245438]
[1728564028541,13.6077,138.77,138.73,0.8245438]
[1728564028723,15.2957,138.78,138.73,8.0326438]
[1728564028916,15.2957,138.78,138.74,7.2076]
[1728564029640,15.2957,138.78,138.73,0.8245438]
[1728564029832,7.2073,138.75,138.73,0.8245438]
[1728564030138,15.2957,138.78,138.73,0.8245438]
[1728564030346,20.0,138.77,138.73,0.8245438]
[1728564031445,7.2077,138.74,138.73,0.8245438]